[Event "Early-Titled-Tuesday-Blitz-October-10-2023"]
[Site "Chess.com"]
[Date "2023.10.10"]
[Round "8"]
[White "crazy_m_attack"]
[Black "Alphafischer2019"]
[Result "0-1"]
[WhiteElo "2421"]
[BlackElo "2578"]
[TimeControl "180+1"]
[EndTime "9:28:47 PDT"]
[Termination "Alphafischer2019 won on time"]

1. e4 {[%clk 0:03:00.9]} 1... c5 {[%clk 0:02:59.4]} 2. Nf3 {[%clk 0:03:01.2]}
2... Nc6 {[%clk 0:02:59.2]} 3. d4 {[%clk 0:03:01.6]} 3... cxd4 {[%clk
0:03:00.1]} 4. Nxd4 {[%clk 0:03:02.5]} 4... g6 {[%clk 0:03:00.8]} 5. Nc3 {[%clk
0:03:02.9]} 5... Bg7 {[%clk 0:03:00.8]} 6. Be3 {[%clk 0:03:03.5]} 6... Nf6
{[%clk 0:03:01.3]} 7. Be2 {[%clk 0:03:04]} 7... O-O {[%clk 0:03:01.2]} 8. Nb3
{[%clk 0:03:04.5]} 8... d6 {[%clk 0:03:00.5]} 9. O-O {[%clk 0:03:04.7]} 9... a5
{[%clk 0:03:00.2]} 10. a4 {[%clk 0:03:04.3]} 10... Be6 {[%clk 0:02:59.8]} 11. f4
{[%clk 0:03:04.6]} 11... Nb4 {[%clk 0:02:45.9]} 12. Bf3 {[%clk 0:02:52.2]} 12...
Qc8 {[%clk 0:02:21.1]} 13. h3 {[%clk 0:02:48]} 13... Bc4 {[%clk 0:02:14.8]} 14.
Rf2 {[%clk 0:02:48]} 14... Rd8 {[%clk 0:01:55.5]} 15. Rd2 {[%clk 0:02:47.2]}
15... Nc6 {[%clk 0:01:39]} 16. Nd4 {[%clk 0:02:12.7]} 16... Nb4 {[%clk
0:01:07.6]} 17. Ndb5 {[%clk 0:01:52.5]} 17... Nc6 {[%clk 0:00:42.3]} 18. Bb6
{[%clk 0:01:42.2]} 18... Rf8 {[%clk 0:00:34.8]} 19. Nd5 {[%clk 0:00:53.8]} 19...
Bxd5 {[%clk 0:00:31.9]} 20. exd5 {[%clk 0:00:36.9]} 20... Nb4 {[%clk 0:00:32.5]}
21. c3 {[%clk 0:00:36.6]} 21... Na6 {[%clk 0:00:32.6]} 22. Qe2 {[%clk
0:00:32.3]} 22... Qd7 {[%clk 0:00:29.3]} 23. Re1 {[%clk 0:00:30.5]} 23... Rfe8
{[%clk 0:00:29.8]} 24. Bxa5 {[%clk 0:00:29.3]} 24... Nc5 {[%clk 0:00:28.5]} 25.
Bb4 {[%clk 0:00:29.7]} 25... Nxa4 {[%clk 0:00:24.4]} 26. Nd4 {[%clk 0:00:24.4]}
26... Nc5 {[%clk 0:00:23.5]} 27. Bxc5 {[%clk 0:00:21.1]} 27... dxc5 {[%clk
0:00:23.8]} 28. Nb3 {[%clk 0:00:21.2]} 28... Rac8 {[%clk 0:00:22.6]} 29. c4
{[%clk 0:00:21.3]} 29... Qd6 {[%clk 0:00:22.3]} 30. Qe5 {[%clk 0:00:21.2]} 30...
Nd7 {[%clk 0:00:20.9]} 31. Qxd6 {[%clk 0:00:18.8]} 31... exd6 {[%clk 0:00:21.8]}
32. Rde2 {[%clk 0:00:19.6]} 32... Rxe2 {[%clk 0:00:20.4]} 33. Rxe2 {[%clk
0:00:20.5]} 33... Nb6 {[%clk 0:00:21]} 34. Na5 {[%clk 0:00:20.6]} 34... Rb8
{[%clk 0:00:15.5]} 35. b3 {[%clk 0:00:18.5]} 35... Bd4+ {[%clk 0:00:15.8]} 36.
Kh2 {[%clk 0:00:18.5]} 36... Kf8 {[%clk 0:00:16.6]} 37. Ra2 {[%clk 0:00:10.5]}
37... Ra8 {[%clk 0:00:15.8]} 38. Be4 {[%clk 0:00:03.7]} 38... Bc3 {[%clk
0:00:15.8]} 39. Rc2 {[%clk 0:00:03.6]} 39... Bxa5 {[%clk 0:00:15.3]} 40. Bf3
{[%clk 0:00:04.5]} 40... Bb4 {[%clk 0:00:15.4]} 41. Bg4 {[%clk 0:00:04.6]} 41...
Ra3 {[%clk 0:00:15.6]} 42. Re2 {[%clk 0:00:03.9]} 42... f5 {[%clk 0:00:15.9]}
43. Bf3 {[%clk 0:00:04]} 43... Rxb3 {[%clk 0:00:16.6]} 44. Re6 {[%clk
0:00:04.7]} 44... Nxc4 {[%clk 0:00:16.5]} 45. Be2 {[%clk 0:00:05.4]} 45... Re3
{[%clk 0:00:15.7]} 46. Bxc4 {[%clk 0:00:05.6]} 46... Rxe6 {[%clk 0:00:11.7]} 47.
dxe6 {[%clk 0:00:06.5]} 47... Be1 {[%clk 0:00:10.8]} 48. g4 {[%clk 0:00:03.9]}
48... Ke7 {[%clk 0:00:10.6]} 49. Kg2 {[%clk 0:00:03.4]} 49... b5 {[%clk
0:00:08.2]} 50. Bxb5 {[%clk 0:00:03.6]} 50... Kxe6 {[%clk 0:00:08.9]} 51. Kf3
{[%clk 0:00:03.3]} 51... d5 {[%clk 0:00:08.6]} 52. Ba6 {[%clk 0:00:02.6]} 52...
Bc3 {[%clk 0:00:08.2]} 53. Bc8+ {[%clk 0:00:02.7]} 53... Kf6 {[%clk 0:00:08.2]}
54. Bb7 {[%clk 0:00:03.4]} 54... Ke6 {[%clk 0:00:06]} 55. Bc8+ {[%clk
0:00:03.6]} 55... Kd6 {[%clk 0:00:05.7]} 56. gxf5 {[%clk 0:00:03.8]} 56... gxf5
{[%clk 0:00:06.6]} 57. Bxf5 {[%clk 0:00:04.3]} 57... h6 {[%clk 0:00:07.5]} 58.
Kg4 {[%clk 0:00:04]} 58... c4 {[%clk 0:00:06.3]} 59. Kh5 {[%clk 0:00:03.5]}
59... Bd2 {[%clk 0:00:06.9]} 60. Kxh6 {[%clk 0:00:03.1]} 60... Bxf4+ {[%clk
0:00:07.5]} 61. Kg6 {[%clk 0:00:03.7]} 61... d4 {[%clk 0:00:08]} 62. Be4 {[%clk
0:00:03]} 62... d3 {[%clk 0:00:08.1]} 63. Kf5 {[%clk 0:00:03.3]} 63... Bg3
{[%clk 0:00:07.3]} 64. Kg4 {[%clk 0:00:03.2]} 64... Be1 {[%clk 0:00:06.9]} 65.
Kf3 {[%clk 0:00:03.4]} 65... Bd2 {[%clk 0:00:05.1]} 66. h4 {[%clk 0:00:03]}
66... Ke5 {[%clk 0:00:05.3]} 67. h5 {[%clk 0:00:02.6]} 67... Kd4 {[%clk
0:00:05.7]} 68. Bf5 {[%clk 0:00:02]} 68... c3 {[%clk 0:00:06]} 69. Bxd3 {[%clk
0:00:01.6]} 69... Kxd3 {[%clk 0:00:06.6]} 0-1

[Event "Early-Titled-Tuesday-Blitz-October-10-2023"]
[Site "Chess.com"]
[Date "2023.10.10"]
[Round "8"]
[White "Orest_Vovk"]
[Black "carokannlover213"]
[Result "0-1"]
[WhiteElo "2525"]
[BlackElo "2724"]
[TimeControl "180+1"]
[EndTime "9:28:55 PDT"]
[Termination "carokannlover213 won on time"]

1. h4 {[%clk 0:03:00.9]} 1... g6 {[%clk 0:03:00.9]} 2. h5 {[%clk 0:03:00.9]}
2... gxh5 {[%clk 0:03:01.2]} 3. e4 {[%clk 0:02:59.9]} 3... d5 {[%clk 0:03:00.8]}
4. exd5 {[%clk 0:02:51.9]} 4... Nf6 {[%clk 0:02:59.8]} 5. Nc3 {[%clk 0:02:51.5]}
5... Bg4 {[%clk 0:02:57.5]} 6. Be2 {[%clk 0:02:51.2]} 6... Rg8 {[%clk
0:02:50.7]} 7. d4 {[%clk 0:02:41]} 7... Nxd5 {[%clk 0:02:40.9]} 8. Bxg4 {[%clk
0:02:37.1]} 8... Rxg4 {[%clk 0:02:25.1]} 9. g3 {[%clk 0:02:05.1]} 9... Nc6
{[%clk 0:02:07.5]} 10. Rxh5 {[%clk 0:01:50.8]} 10... Nf6 {[%clk 0:02:07.2]} 11.
d5 {[%clk 0:01:01]} 11... Rd4 {[%clk 0:02:00.6]} 12. Qe2 {[%clk 0:01:00.4]}
12... Nxd5 {[%clk 0:01:41.6]} 13. Ne4 {[%clk 0:00:33.9]} 13... Rxe4 {[%clk
0:01:33]} 14. Qxe4 {[%clk 0:00:27.3]} 14... Nf6 {[%clk 0:01:33.1]} 15. Qe2
{[%clk 0:00:23.4]} 15... Nd4 {[%clk 0:01:33]} 16. Qd1 {[%clk 0:00:10.4]} 16...
Nxh5 {[%clk 0:01:11.9]} 17. c3 {[%clk 0:00:10.6]} 17... Nxg3 {[%clk 0:01:07.3]}
18. cxd4 {[%clk 0:00:08.7]} 18... Nf5 {[%clk 0:01:05.7]} 19. Be3 {[%clk
0:00:07.9]} 19... e6 {[%clk 0:01:05.9]} 20. Qb3 {[%clk 0:00:07.6]} 20... Qd5
{[%clk 0:01:04.9]} 21. Qxd5 {[%clk 0:00:06.1]} 21... exd5 {[%clk 0:01:05.8]} 22.
O-O-O {[%clk 0:00:06.3]} 22... c6 {[%clk 0:01:05.5]} 23. Nf3 {[%clk 0:00:06.1]}
23... Nxe3 {[%clk 0:01:03.4]} 24. fxe3 {[%clk 0:00:06]} 24... h6 {[%clk
0:00:52.4]} 25. Rh1 {[%clk 0:00:05.3]} 25... f6 {[%clk 0:00:48.7]} 26. Nh4
{[%clk 0:00:04.7]} 26... Kf7 {[%clk 0:00:49.3]} 27. Nf5 {[%clk 0:00:04.5]} 27...
Re8 {[%clk 0:00:50.1]} 28. Kd2 {[%clk 0:00:04.3]} 28... h5 {[%clk 0:00:46.5]}
29. Kd3 {[%clk 0:00:03.3]} 29... Kg6 {[%clk 0:00:43.1]} 30. Nh4+ {[%clk
0:00:03.3]} 30... Kg5 {[%clk 0:00:41]} 31. Nf3+ {[%clk 0:00:03.5]} 31... Kg4
{[%clk 0:00:41.4]} 32. Ke2 {[%clk 0:00:03.3]} 32... Bh6 {[%clk 0:00:36.7]} 33.
Rg1+ {[%clk 0:00:03.4]} 33... Kf5 {[%clk 0:00:34.8]} 34. Nh4+ {[%clk 0:00:03.6]}
34... Ke6 {[%clk 0:00:35.2]} 35. Kf3 {[%clk 0:00:03.6]} 35... Bg5 {[%clk
0:00:34.2]} 36. Ng2 {[%clk 0:00:02.9]} 36... Kf5 {[%clk 0:00:34.3]} 37. Rh1
{[%clk 0:00:02.8]} 37... Kg6 {[%clk 0:00:30.6]} 38. Rg1 {[%clk 0:00:02.2]} 38...
Re4 {[%clk 0:00:25.4]} 39. Nf4+ {[%clk 0:00:01.9]} 39... Kh6 {[%clk 0:00:26.2]}
40. Rg2 {[%clk 0:00:01.5]} 40... f5 {[%clk 0:00:18.2]} 41. Rh2 {[%clk 0:00:01]}
41... Bxf4 {[%clk 0:00:17.6]} 42. exf4 {[%clk 0:00:01.9]} 42... Rxd4 {[%clk
0:00:18.1]} 43. Rg2 {[%clk 0:00:02.5]} 43... Rd3+ {[%clk 0:00:18.3]} 44. Ke2
{[%clk 0:00:02.8]} 44... Rd4 {[%clk 0:00:18.8]} 45. Ke3 {[%clk 0:00:03.1]} 45...
Re4+ {[%clk 0:00:19.3]} 46. Kf3 {[%clk 0:00:03.5]} 46... Re6 {[%clk 0:00:20]}
47. Rg5 {[%clk 0:00:03.5]} 47... Rf6 {[%clk 0:00:20.3]} 48. Rg8 {[%clk
0:00:03.7]} 48... Rf7 {[%clk 0:00:20.8]} 49. Rh8+ {[%clk 0:00:03.3]} 49... Kg6
{[%clk 0:00:21.2]} 50. Ra8 {[%clk 0:00:04.2]} 50... a6 {[%clk 0:00:19.6]} 51.
Rg8+ {[%clk 0:00:03.5]} 51... Kf6 {[%clk 0:00:19.5]} 52. Rh8 {[%clk 0:00:03.2]}
52... Kg6 {[%clk 0:00:20.1]} 53. Rg8+ {[%clk 0:00:03.1]} 53... Rg7 {[%clk
0:00:20.7]} 54. Rf8 {[%clk 0:00:02.6]} 54... Re7 {[%clk 0:00:20.9]} 55. Rg8+
{[%clk 0:00:02.2]} 55... Kh6 {[%clk 0:00:21.1]} 56. Rh8+ {[%clk 0:00:02.5]}
56... Kg7 {[%clk 0:00:17.1]} 57. Rxh5 {[%clk 0:00:02.4]} 57... Kg6 {[%clk
0:00:17.7]} 58. Rg5+ {[%clk 0:00:02.6]} 58... Kf6 {[%clk 0:00:18.3]} 59. Rh5
{[%clk 0:00:03.2]} 59... d4 {[%clk 0:00:18.6]} 60. Rh6+ {[%clk 0:00:03.3]} 60...
Kg7 {[%clk 0:00:19.1]} 61. Rd6 {[%clk 0:00:03.2]} 61... Re3+ {[%clk 0:00:16.2]}
62. Kf2 {[%clk 0:00:02.5]} 62... Re4 {[%clk 0:00:15.5]} 63. Kf3 {[%clk
0:00:02.1]} 63... Kf7 {[%clk 0:00:16]} 64. Rd7+ {[%clk 0:00:02.5]} 64... Ke6
{[%clk 0:00:10.4]} 65. Rxb7 {[%clk 0:00:03.1]} 65... Re3+ {[%clk 0:00:10.8]} 66.
Kf2 {[%clk 0:00:03]} 66... Rh3 {[%clk 0:00:10.6]} 67. Kg2 {[%clk 0:00:03.1]}
67... Rd3 {[%clk 0:00:09.5]} 68. Rb6 {[%clk 0:00:04]} 68... Kd5 {[%clk
0:00:09.3]} 69. Kf2 {[%clk 0:00:04.1]} 69... Rd2+ {[%clk 0:00:08.6]} 70. Kf3
{[%clk 0:00:04]} 70... a5 {[%clk 0:00:08.7]} 71. a4 {[%clk 0:00:02.7]} 71... c5
{[%clk 0:00:08]} 72. b3 {[%clk 0:00:03.1]} 72... Rb2 {[%clk 0:00:05.8]} 73. Rb5
{[%clk 0:00:03.4]} 73... d3 {[%clk 0:00:05.2]} 74. Ke3 {[%clk 0:00:03.4]} 74...
d2 {[%clk 0:00:04.5]} 75. Ke2 {[%clk 0:00:03.8]} 75... Kd4 {[%clk 0:00:03.6]}
76. Kd1 {[%clk 0:00:03.6]} 76... Kd3 {[%clk 0:00:03.4]} 77. Rxc5 {[%clk
0:00:03.4]} 77... Rb1+ {[%clk 0:00:04.3]} 0-1

[Event "Early-Titled-Tuesday-Blitz-October-10-2023"]
[Site "Chess.com"]
[Date "2023.10.10"]
[Round "8"]
[White "a-z30"]
[Black "VOneChess"]
[Result "1-0"]
[WhiteElo "2474"]
[BlackElo "2240"]
[TimeControl "180+1"]
[EndTime "9:28:58 PDT"]
[Termination "a-z30 won by resignation"]

1. d4 {[%clk 0:03:00.9]} 1... Nf6 {[%clk 0:02:59.9]} 2. c4 {[%clk 0:03:00.7]}
2... c5 {[%clk 0:02:59.3]} 3. Nf3 {[%clk 0:03:00.1]} 3... cxd4 {[%clk 0:02:59]}
4. Nxd4 {[%clk 0:02:59.8]} 4... Nc6 {[%clk 0:02:59.6]} 5. g3 {[%clk 0:02:57.1]}
5... g6 {[%clk 0:02:58.3]} 6. Bg2 {[%clk 0:02:56.8]} 6... Bg7 {[%clk 0:02:58.8]}
7. O-O {[%clk 0:02:56.4]} 7... O-O {[%clk 0:02:58.4]} 8. Nc3 {[%clk 0:02:56.1]}
8... a6 {[%clk 0:02:50.7]} 9. Nb3 {[%clk 0:02:46.4]} 9... Qc7 {[%clk 0:02:46.8]}
10. Bf4 {[%clk 0:02:44.4]} 10... d6 {[%clk 0:02:47.1]} 11. c5 {[%clk 0:02:44.6]}
11... Rd8 {[%clk 0:02:37.7]} 12. cxd6 {[%clk 0:02:38.5]} 12... exd6 {[%clk
0:02:37.1]} 13. Rc1 {[%clk 0:02:37.6]} 13... Bg4 {[%clk 0:02:32.2]} 14. h3
{[%clk 0:02:36.6]} 14... Be6 {[%clk 0:02:18]} 15. Nd4 {[%clk 0:02:31.4]} 15...
Nxd4 {[%clk 0:02:15.2]} 16. Qxd4 {[%clk 0:02:30.5]} 16... Nh5 {[%clk 0:02:11.2]}
17. Qd2 {[%clk 0:02:22.1]} 17... Nxf4 {[%clk 0:02:10.4]} 18. Qxf4 {[%clk
0:02:21.5]} 18... Rac8 {[%clk 0:02:09.2]} 19. Nd5 {[%clk 0:02:05.9]} 19... Qd7
{[%clk 0:01:50.8]} 20. Nb6 {[%clk 0:02:03.9]} 20... Rxc1 {[%clk 0:01:48]} 21.
Nxd7 {[%clk 0:02:03]} 21... Rxf1+ {[%clk 0:01:47.7]} 22. Kxf1 {[%clk 0:01:45]}
22... Rxd7 {[%clk 0:01:48.6]} 23. h4 {[%clk 0:01:34.1]} 23... Bxb2 {[%clk
0:01:48.3]} 24. Qd2 {[%clk 0:01:22.9]} 24... Be5 {[%clk 0:01:45.6]} 25. Qc2
{[%clk 0:01:19.1]} 25... Kg7 {[%clk 0:01:34.4]} 26. Kg1 {[%clk 0:01:18]} 26...
Bd4 {[%clk 0:01:07.6]} 27. e3 {[%clk 0:01:14.8]} 27... Bc5 {[%clk 0:01:07.9]}
28. Qc3+ {[%clk 0:01:12.7]} 28... Kg8 {[%clk 0:01:06]} 29. h5 {[%clk 0:01:12.4]}
29... gxh5 {[%clk 0:01:01.8]} 30. Qf6 {[%clk 0:01:10.8]} 30... Bxa2 {[%clk
0:00:16.8]} 31. Bh3 {[%clk 0:01:01.6]} 31... Be6 {[%clk 0:00:09.8]} 32. Bxe6
{[%clk 0:01:01]} 32... fxe6 {[%clk 0:00:10.7]} 33. Qxe6+ {[%clk 0:00:59.9]}
33... Rf7 {[%clk 0:00:11.4]} 34. Qh3 {[%clk 0:00:47.9]} 34... b5 {[%clk
0:00:07.8]} 35. Qxh5 {[%clk 0:00:47.6]} 35... b4 {[%clk 0:00:07.6]} 36. Qd5
{[%clk 0:00:42.4]} 36... Kg7 {[%clk 0:00:04.9]} 37. Kg2 {[%clk 0:00:40.3]} 37...
a5 {[%clk 0:00:02.9]} 38. Qg5+ {[%clk 0:00:16.7]} 38... Kf8 {[%clk 0:00:02.8]}
39. Qd8+ {[%clk 0:00:16.3]} 39... Kg7 {[%clk 0:00:03.4]} 40. Qxa5 {[%clk
0:00:17.2]} 40... Rb7 {[%clk 0:00:03.9]} 41. Qa6 {[%clk 0:00:13]} 41... Rb6
{[%clk 0:00:03]} 42. Qa7+ {[%clk 0:00:13.3]} 42... Kg6 {[%clk 0:00:03.2]} 43. g4
{[%clk 0:00:13.5]} 43... b3 {[%clk 0:00:03.6]} 44. Qd7 {[%clk 0:00:10.5]} 44...
b2 {[%clk 0:00:03]} 45. Qf5+ {[%clk 0:00:11.4]} 45... Kg7 {[%clk 0:00:03.3]} 46.
Qb1 {[%clk 0:00:11.7]} 46... Rb4 {[%clk 0:00:01.8]} 47. f4 {[%clk 0:00:09.6]}
47... Bxe3 {[%clk 0:00:01.1]} 48. f5 {[%clk 0:00:09.8]} 48... Bf4 {[%clk
0:00:01.4]} 49. Kh3 {[%clk 0:00:08.8]} 49... Be5 {[%clk 0:00:02]} 50. g5 {[%clk
0:00:08.3]} 50... Rb3+ {[%clk 0:00:02.5]} 51. Kg2 {[%clk 0:00:06.7]} 51... Rg3+
{[%clk 0:00:02.9]} 52. Kf2 {[%clk 0:00:06.8]} 52... Rc3 {[%clk 0:00:03.6]} 53.
f6+ {[%clk 0:00:07.2]} 53... Kf7 {[%clk 0:00:03.1]} 54. Qxh7+ {[%clk 0:00:06]}
54... Ke6 {[%clk 0:00:03.6]} 55. Qe7+ {[%clk 0:00:05]} 55... Kd5 {[%clk
0:00:03.6]} 56. Qb7+ {[%clk 0:00:04.7]} 56... Kd4 {[%clk 0:00:03.6]} 57. f7
{[%clk 0:00:05.6]} 57... Rc2+ {[%clk 0:00:03.5]} 58. Kf3 {[%clk 0:00:04.8]}
58... Rc1 {[%clk 0:00:03.6]} 59. Qxb2+ {[%clk 0:00:02.6]} 59... Rc3+ {[%clk
0:00:02.8]} 60. Qxc3+ {[%clk 0:00:02.8]} 60... Kxc3 {[%clk 0:00:03.3]} 61. f8=Q
{[%clk 0:00:03.7]} 61... d5 {[%clk 0:00:03.9]} 62. Qf5 {[%clk 0:00:04.6]} 62...
d4 {[%clk 0:00:04.5]} 63. g6 {[%clk 0:00:05.5]} 63... Bd6 {[%clk 0:00:04.5]} 64.
Qc8+ {[%clk 0:00:05.3]} 64... Kd2 {[%clk 0:00:04.1]} 65. Qh3 {[%clk 0:00:06.2]}
65... d3 {[%clk 0:00:04.2]} 66. Qg2+ {[%clk 0:00:07.1]} 66... Kc3 {[%clk
0:00:04.6]} 67. Qf1 {[%clk 0:00:07.1]} 67... Be5 {[%clk 0:00:04.6]} 68. Qd1
{[%clk 0:00:07]} 68... d2 {[%clk 0:00:04.8]} 69. Kg4 {[%clk 0:00:07.9]} 69...
Bd4 {[%clk 0:00:04.7]} 70. Kf5 {[%clk 0:00:08.8]} 70... Kd3 {[%clk 0:00:04.6]}
71. Ke6 {[%clk 0:00:09.7]} 71... Ke3 {[%clk 0:00:04.6]} 72. Kf7 {[%clk
0:00:10.6]} 72... Kd3 {[%clk 0:00:03.8]} 73. g7 {[%clk 0:00:11.5]} 73... Bxg7
{[%clk 0:00:03.2]} 74. Kxg7 {[%clk 0:00:11.6]} 74... Kc3 {[%clk 0:00:02.9]} 75.
Kg6 {[%clk 0:00:12.5]} 1-0

[Event "Early-Titled-Tuesday-Blitz-October-10-2023"]
[Site "Chess.com"]
[Date "2023.10.10"]
[Round "8"]
[White "soumeow"]
[Black "MMAHDI2013"]
[Result "1/2-1/2"]
[WhiteElo "2306"]
[BlackElo "2476"]
[TimeControl "180+1"]
[EndTime "9:29:11 PDT"]
[Termination "Game drawn by repetition"]

1. e4 {[%clk 0:03:00.9]} 1... c6 {[%clk 0:02:56.6]} 2. d4 {[%clk 0:02:58]} 2...
d5 {[%clk 0:02:57.5]} 3. e5 {[%clk 0:02:58]} 3... c5 {[%clk 0:02:57.6]} 4. dxc5
{[%clk 0:02:56.9]} 4... e6 {[%clk 0:02:57.6]} 5. a3 {[%clk 0:02:57.3]} 5... Bxc5
{[%clk 0:02:56.3]} 6. Nf3 {[%clk 0:02:57.4]} 6... Ne7 {[%clk 0:02:55.7]} 7. b4
{[%clk 0:02:55.4]} 7... Bb6 {[%clk 0:02:55.9]} 8. Bd3 {[%clk 0:02:44.9]} 8... a5
{[%clk 0:02:53.5]} 9. Bb2 {[%clk 0:02:32.5]} 9... axb4 {[%clk 0:02:52.5]} 10.
axb4 {[%clk 0:02:33.4]} 10... Rxa1 {[%clk 0:02:52.6]} 11. Bxa1 {[%clk
0:02:34.3]} 11... Ng6 {[%clk 0:02:50.5]} 12. O-O {[%clk 0:02:33.1]} 12... O-O
{[%clk 0:02:48.4]} 13. c4 {[%clk 0:02:23.8]} 13... Nf4 {[%clk 0:02:28]} 14. c5
{[%clk 0:02:15.7]} 14... Bc7 {[%clk 0:02:12.3]} 15. Bc2 {[%clk 0:02:15.4]} 15...
Nd7 {[%clk 0:02:07.1]} 16. g3 {[%clk 0:01:55.3]} 16... Ng6 {[%clk 0:01:59]} 17.
Re1 {[%clk 0:01:55.6]} 17... f6 {[%clk 0:01:47.7]} 18. exf6 {[%clk 0:01:37.2]}
18... Nxf6 {[%clk 0:01:48.4]} 19. Nbd2 {[%clk 0:01:20.9]} 19... Bd7 {[%clk
0:01:12.9]} 20. Qb1 {[%clk 0:01:15.3]} 20... Qe8 {[%clk 0:00:52.1]} 21. h4
{[%clk 0:00:54.2]} 21... Kh8 {[%clk 0:00:27.9]} 22. Nb3 {[%clk 0:00:24.2]} 22...
Ba4 {[%clk 0:00:16.2]} 23. Bxg6 {[%clk 0:00:23.6]} 23... Qxg6 {[%clk 0:00:16.2]}
24. Qxg6 {[%clk 0:00:23.1]} 24... hxg6 {[%clk 0:00:17]} 25. Nbd4 {[%clk
0:00:20.9]} 25... e5 {[%clk 0:00:16.6]} 26. Ne6 {[%clk 0:00:14.6]} 26... Rf7
{[%clk 0:00:16]} 27. Nxc7 {[%clk 0:00:14.3]} 27... Rxc7 {[%clk 0:00:16.1]} 28.
Nxe5 {[%clk 0:00:14.8]} 28... Kh7 {[%clk 0:00:15.8]} 29. Bd4 {[%clk 0:00:12]}
29... Ne4 {[%clk 0:00:14.8]} 30. Nd3 {[%clk 0:00:09.2]} 30... Nd2 {[%clk
0:00:11.6]} 31. Kg2 {[%clk 0:00:08.6]} 31... Bc2 {[%clk 0:00:10.8]} 32. Nf4
{[%clk 0:00:08.7]} 32... Be4+ {[%clk 0:00:10.4]} 33. Kh3 {[%clk 0:00:08.5]}
33... Nf3 {[%clk 0:00:10.5]} 34. Rc1 {[%clk 0:00:06.6]} 34... Rc8 {[%clk
0:00:10.5]} 35. b5 {[%clk 0:00:05.8]} 35... Nxd4 {[%clk 0:00:10.1]} 36. g4
{[%clk 0:00:03.2]} 36... Bf3 {[%clk 0:00:09.7]} 37. Kg3 {[%clk 0:00:02.7]} 37...
Ne2+ {[%clk 0:00:09.1]} 38. Nxe2 {[%clk 0:00:03]} 38... Bxe2 {[%clk 0:00:09.8]}
39. c6 {[%clk 0:00:02.5]} 39... bxc6 {[%clk 0:00:08.3]} 40. bxc6 {[%clk
0:00:03.4]} 40... Bb5 {[%clk 0:00:07.5]} 41. c7 {[%clk 0:00:03.8]} 41... d4
{[%clk 0:00:07.6]} 42. Kf4 {[%clk 0:00:02.7]} 42... Bd7 {[%clk 0:00:07]} 43. g5
{[%clk 0:00:01.8]} 43... Kg8 {[%clk 0:00:06.2]} 44. Ke4 {[%clk 0:00:01.7]} 44...
Kf7 {[%clk 0:00:06.2]} 45. Kxd4 {[%clk 0:00:02.2]} 45... Ke7 {[%clk 0:00:06.9]}
46. Kd5 {[%clk 0:00:01.8]} 46... Be6+ {[%clk 0:00:05.6]} 47. Ke5 {[%clk
0:00:01.8]} 47... Bf5 {[%clk 0:00:04.7]} 48. Rc5 {[%clk 0:00:01.2]} 48... Kd7
{[%clk 0:00:04.3]} 49. h5 {[%clk 0:00:01.2]} 49... Rxc7 {[%clk 0:00:03.8]} 50.
Rd5+ {[%clk 0:00:01.3]} 50... Ke7 {[%clk 0:00:03.8]} 51. hxg6 {[%clk 0:00:02.2]}
51... Bxg6 {[%clk 0:00:03.6]} 52. f4 {[%clk 0:00:02.2]} 52... Rc2 {[%clk
0:00:03.2]} 53. f5 {[%clk 0:00:02.2]} 53... Re2+ {[%clk 0:00:03.4]} 54. Kf4
{[%clk 0:00:01.8]} 54... Bf7 {[%clk 0:00:03.3]} 55. Re5+ {[%clk 0:00:01.4]}
55... Rxe5 {[%clk 0:00:03.3]} 56. Kxe5 {[%clk 0:00:02.3]} 56... Kf8 {[%clk
0:00:03.5]} 57. f6 {[%clk 0:00:02.8]} 57... g6 {[%clk 0:00:03.8]} 58. Kd6 {[%clk
0:00:03.2]} 58... Ke8 {[%clk 0:00:04.2]} 59. Kc7 {[%clk 0:00:03]} 59... Bg8
{[%clk 0:00:04.5]} 60. Kd6 {[%clk 0:00:02.5]} 60... Kd8 {[%clk 0:00:04.8]} 61.
Kc6 {[%clk 0:00:02.7]} 61... Bf7 {[%clk 0:00:03.9]} 62. Kd6 {[%clk 0:00:03.1]}
62... Bc4 {[%clk 0:00:04]} 63. Kc6 {[%clk 0:00:03]} 63... Ke8 {[%clk 0:00:03.3]}
64. Kd6 {[%clk 0:00:03.1]} 64... Kf7 {[%clk 0:00:04.1]} 65. Kd7 {[%clk
0:00:02.8]} 65... Bb3 {[%clk 0:00:03.6]} 66. Kd6 {[%clk 0:00:02.7]} 66... Be6
{[%clk 0:00:03.6]} 67. Ke5 {[%clk 0:00:02.5]} 67... Bf5 {[%clk 0:00:03.4]} 68.
Kd6 {[%clk 0:00:02.7]} 68... Ke8 {[%clk 0:00:03.7]} 69. Kc7 {[%clk 0:00:02.5]}
69... Be4 {[%clk 0:00:03.5]} 70. Kd6 {[%clk 0:00:02.8]} 70... Bd3 {[%clk
0:00:03.8]} 71. Kc7 {[%clk 0:00:02.9]} 71... Bc4 {[%clk 0:00:03.9]} 72. Kd6
{[%clk 0:00:03.1]} 72... Kd8 {[%clk 0:00:04.2]} 73. Kc6 {[%clk 0:00:02.6]} 73...
Bf7 {[%clk 0:00:03.6]} 74. Kd6 {[%clk 0:00:02.8]} 74... Bg8 {[%clk 0:00:02.5]}
75. Kc6 {[%clk 0:00:02.7]} 75... Bf7 {[%clk 0:00:03.1]} 1/2-1/2